lending/lending_fUSD_20241229
["ID","MTS","AMOUNT","RATE_DAILY","PERIOD"]
[347064209,1735488651297,-500.0,0.00011813,2]
[347064210,1735488651305,-1219.09,0.00011813,2]
[347064211,1735488651315,-2582.9,0.00011813,2]
[347064212,1735488651325,-1357.58,0.00011813,2]
[347064213,1735488651335,-2228.51,0.00011813,2]
[347064214,1735488651344,-813.92,0.00011813,2]
[347064215,1735488651354,-1998.82,0.00011813,2]
[347064216,1735488651364,-500.0,0.00011813,2]
[347064217,1735488651373,-586.24,0.00011813,2]
[347064218,1735488651383,-755.57,0.00011813,2]
[347064219,1735488651392,-1714.78,0.00011813,2]
[347064220,1735488651401,-3929.59,0.00011813,2]
[347064221,1735488651410,-6587.53,0.00011813,2]
[347064222,1735488651420,-579.57,0.00011813,2]
[347064223,1735488651430,-1115.62,0.00011813,2]
[347064224,1735488651440,-1076.48,0.00011813,2]
[347064225,1735488651449,-3562.23,0.00011813,2]
[347064226,1735488651458,-500.0,0.00011813,2]
[347064227,1735488651468,-1607.56,0.00011813,2]
[347064228,1735488651477,-764.89,0.00011813,2]
[347064229,1735488651486,-839.67,0.00011813,2]
[347064230,1735488651495,-6059.7,0.00011813,2]
[347064231,1735488651506,-500.0,0.00011813,2]
[347064233,1735488651516,-490.28906968,0.00011813,2]
[347064235,1735488651525,-601.2,0.00011813,2]
[347064237,1735488651535,-500.0,0.00011813,2]
[347064239,1735488651544,-1376.85,0.00011813,2]
[347064241,1735488651553,-500.0,0.00011813,2]
[347064243,1735488651563,-500.0,0.00011813,2]
[347064245,1735488651572,-949.13,0.00011813,2]
[347064247,1735488651580,-19790.74,0.00011813,2]
[347064248,1735488651589,-791.13,0.00011813,2]
[347064250,1735488651598,-2320.67,0.00011813,2]
[347064251,1735488651607,-500.0,0.00011813,2]
[347064252,1735488651616,-500.0,0.00011813,2]
[347064253,1735488651624,-500.0,0.00011813,2]
[347064254,1735488651633,-503.43,0.00011813,2]
[347064255,1735488651642,-653.52,0.00011813,2]
[347064256,1735488651654,-500.0,0.00011813,2]
[347064257,1735488651663,-2382.92,0.00011813,2]
[347064258,1735488651671,-867.85,0.00011813,2]
[347064260,1735488651681,-1507.37,0.00011813,2]
[347064261,1735488651690,-2219.5,0.00011813,2]
[347064263,1735488651699,-617.34,0.00011813,2]
[347064265,1735488651709,-694.29,0.00011813,2]
[347064267,1735488651719,-3871.95,0.00011813,2]
[347064268,1735488651728,-1835.67,0.00011813,2]
[347064269,1735488651738,-595.7,0.00011813,2]
[347064270,1735488651750,-500.0,0.00011813,2]
[347064271,1735488651760,-500.0,0.00011813,2]
[347064272,1735488651770,-1893.74,0.00011813,2]
[347064273,1735488651779,-1947.97,0.00011813,2]
[347064274,1735488651789,-500.0,0.00011813,2]
[347064275,1735488651799,-1878.18,0.00011813,2]
[347064276,1735488651809,-500.0,0.00011813,2]
[347064277,1735488651819,-1164.34,0.00011813,2]
[347064278,1735488651829,-1209.08,0.00011813,2]
[347064279,1735488651839,-5594.98,0.00011813,2]
[347064280,1735488651848,-500.0,0.00011813,2]
[347064282,1735488651858,-500.0,0.00011813,2]
[347064284,1735488651867,-500.0,0.00011813,2]
[347064286,1735488651877,-7228.43,0.00011813,2]
[347064287,1735488651886,-1077.74,0.00011813,2]
[347064288,1735488651896,-1354.3,0.00011813,2]
[347064289,1735488651905,-669.29,0.00011813,2]
[347064290,1735488651915,-12497.94,0.00011813,2]
[347064291,1735488651925,-1725.0,0.00011813,2]
[347064292,1735488651935,-610.92,0.00011813,2]
[347064293,1735488651945,-530.12,0.00011813,2]
[347064294,1735488651955,-500.0,0.00011813,2]
[347064295,1735488651964,-575.29328398,0.00011813,2]
[347064296,1735488651974,-500.0,0.00011813,2]
[347064297,1735488651984,-500.0,0.00011813,2]
[347064298,1735488651994,-1372.72,0.00011813,2]
[347064299,1735488652004,-9039.1,0.00011813,2]
[347064301,1735488652014,-500.0,0.00011813,2]
[347064303,1735488652024,-500.0,0.00011813,2]
[347064305,1735488652033,-2111.34,0.00011813,2]
[347064307,1735488652042,-500.0,0.00011813,2]
[347064309,1735488652051,-1947.11564356,0.00011813,2]
[347064325,1735488652600,-1536.16654444,0.00011813,2]
[347064326,1735488652610,-3362.08,0.00011813,2]
[347064327,1735488652619,-3429.50371,0.00011813,2]
[347064328,1735488652628,-197.96397424,0.00011813,2]
[347064329,1735488652638,-1401.96,0.00011813,2]
[347064330,1735488652648,-916.92,0.00011813,2]
[347064331,1735488652657,-7675.09,0.00011813,2]
[347064332,1735488652666,-535.18802074,0.00011813,2]
[347064333,1735488652676,-500.0,0.00011813,2]
[347064334,1735488652686,-500.0,0.00011813,2]
[347064335,1735488652696,-500.0,0.00011813,2]
[347064336,1735488652706,-500.0,0.00011813,2]
[347064337,1735488652717,-1595.64,0.00011813,2]
[347064338,1735488652726,-1828.3,0.00011813,2]
[347064339,1735488652736,-500.0,0.00011813,2]
[347064340,1735488652746,-1906.71,0.00011813,2]
[347064341,1735488652757,-500.0,0.00011813,2]
[347064342,1735488652767,-1770.2,0.00011813,2]
[347064343,1735488652777,-4257.37,0.00011813,2]
[347064344,1735488652787,-619.88963541,0.00011813,2]
[347064345,1735488652797,-500.0,0.00011813,2]
[347064346,1735488652806,-500.0,0.00011813,2]
[347064347,1735488652816,-2065.67,0.00011813,2]
[347064348,1735488652825,-500.0,0.00011813,2]
[347064349,1735488652835,-500.0,0.00011813,2]
[347064350,1735488652844,-500.0,0.00011813,2]
[347064351,1735488652854,-5399.0,0.00011813,2]
[347064352,1735488652863,-500.0,0.00011813,2]
[347064353,1735488652872,-500.0,0.00011813,2]
[347064354,1735488652883,-194.80847032,0.00011814,2]
[347064355,1735488652894,-405.55610801,0.00011814,2]
[347064356,1735488652903,-1055.76,0.00011814,2]
[347064357,1735488652913,-399.26445758,0.00011814,2]
[347064358,1735488652922,-500.0,0.00011814,2]
[347064359,1735488652932,-2761.31,0.00011814,2]
[347064360,1735488652942,-500.0,0.00011814,2]
[347064361,1735488652951,-500.0,0.00011814,2]
[347064362,1735488652960,-500.0,0.00011814,2]
[347064363,1735488652970,-1327.0,0.00011814,2]
[347064364,1735488652980,-727.81,0.00011814,2]
[347064365,1735488652989,-20148.96,0.00011814,2]
[347064366,1735488653000,-500.0,0.00011814,2]
[347064367,1735488653010,-521.5490817,0.00011814,2]
[347064368,1735488653021,-500.0,0.00011814,2]
[347064369,1735488653031,-500.0,0.00011814,2]
[347064370,1735488653041,-534.5196088,0.00011814,2]
[347064371,1735488653051,-2348.44,0.00011814,2]
[347064372,1735488653061,-500.0,0.00011814,2]
[347064373,1735488653071,-1245.39,0.00011814,2]
[347064374,1735488653081,-500.0,0.00011814,2]
[347064375,1735488653091,-527.41,0.00011814,2]
[347064376,1735488653101,-500.0,0.00011814,2]
[347064377,1735488653111,-500.0,0.00011814,2]
[347064378,1735488653120,-472.13194327,0.00011814,2]
[347064379,1735488653130,-3503.68,0.00011814,2]
[347064380,1735488653141,-987.26,0.00011814,2]
[347064381,1735488653151,-500.0,0.00011814,2]
[347064382,1735488653161,-500.0,0.00011814,2]
[347064383,1735488653170,-1487.5,0.00011814,2]
[347064384,1735488653180,-500.0,0.00011814,2]
[347064385,1735488653190,-500.0,0.00011814,2]
[347064386,1735488653199,-500.0,0.00011814,2]
[347064387,1735488653210,-500.0,0.00011814,2]
[347064388,1735488653219,-500.0,0.00011814,2]
[347064389,1735488653230,-2207.4,0.00011814,2]
[347064390,1735488653240,-564.6,0.00011814,2]
[347064391,1735488653250,-500.0,0.00011814,2]
[347064392,1735488653260,-500.0,0.00011814,2]
[347064393,1735488653269,-500.0,0.00011814,2]
[347064394,1735488653279,-500.0,0.00011814,2]
[347064395,1735488653522,-987.2,0.00011814,2]
[347064396,1735488653531,-782.42,0.00011814,2]
[347064397,1735488653541,-500.0,0.00011814,2]
[347064398,1735488653550,-500.0,0.00011814,2]
[347064399,1735488653560,-971.08,0.00011814,2]
[347064400,1735488653569,-625.05,0.00011814,2]
[347064401,1735488653579,-500.0,0.00011814,2]
[347064402,1735488653594,-592.02,0.00011814,2]
[347064403,1735488653604,-500.0,0.00011814,2]
[347064404,1735488653613,-500.0,0.00011814,2]
[347064405,1735488653623,-500.0,0.00011814,2]
[347064406,1735488653632,-700.74,0.00011814,2]
[347064407,1735488653641,-199.018152,0.00011814,2]
[347064408,1735488653651,-500.0,0.00011814,2]
[347064409,1735488653660,-813.32,0.00011814,2]
[347064410,1735488653670,-500.0,0.00011814,2]
[347064411,1735488653679,-14656.54,0.00011814,2]
[347064412,1735488653689,-819.7,0.00011814,2]
[347064413,1735488653698,-500.0,0.00011814,2]
[347064414,1735488653708,-500.0,0.00011814,2]
[347064415,1735488653717,-500.0,0.00011814,2]
[347064416,1735488653727,-500.0,0.00011814,2]
[347064417,1735488653737,-2939.33,0.00011814,2]
[347064418,1735488653746,-500.0,0.00011814,2]
[347064419,1735488653758,-828.91,0.00011814,2]
[347064420,1735488653768,-500.0,0.00011814,2]
[347064421,1735488653777,-202.06709509,0.00011814,2]
[347064422,1735488653787,-2504.92,0.00011814,2]
[347064423,1735488653796,-617.96,0.00011814,2]
[347064424,1735488653806,-500.0,0.00011814,2]
[347064425,1735488653816,-530.75,0.00011814,2]
[347064426,1735488653825,-2500.52,0.00011814,2]
[347064427,1735488653834,-500.0,0.00011814,2]
[347064428,1735488653844,-500.0,0.00011814,2]
[347064429,1735488653854,-500.0,0.00011814,2]
[347064430,1735488653863,-1067.86,0.00011814,2]
[347064431,1735488653872,-500.0,0.00011814,2]
[347064432,1735488653881,-500.0,0.00011814,2]
[347064433,1735488653891,-180.38650903,0.00011814,2]
[347064434,1735488653901,-2562.57,0.00011814,2]
[347064435,1735488653910,-605.28,0.00011814,2]
[347064436,1735488653919,-4160.82,0.00011814,2]
[347064437,1735488653928,-760.22,0.00011814,2]
[347064438,1735488653938,-500.0,0.00011814,2]
[347064439,1735488653947,-1889.09,0.00011814,2]
[347064440,1735488653956,-500.0,0.00011814,2]
[347064441,1735488653965,-500.0,0.00011814,2]
[347064442,1735488653975,-1317.14,0.00011814,2]
[347064443,1735488653984,-500.0,0.00011814,2]
[347064444,1735488653993,-500.0,0.00011814,2]
[347064445,1735488654003,-500.0,0.00011814,2]
[347064446,1735488654014,-500.0,0.00011814,2]
[347064447,1735488654023,-500.0,0.00011814,2]
[347064448,1735488654033,-2304.44,0.00011814,2]
[347064449,1735488654043,-500.0,0.00011814,2]
[347064450,1735488654052,-1101.75,0.00011814,2]
[347064451,1735488654062,-1395.97,0.00011814,2]
[347064452,1735488654071,-500.0,0.00011814,2]
[347064453,1735488654080,-500.0,0.00011814,2]
[347064454,1735488654090,-500.0,0.00011814,2]
[347064455,1735488654099,-1565.21,0.00011814,2]
[347064456,1735488654109,-500.0,0.00011814,2]
[347064457,1735488654118,-550.22,0.00011814,2]
[347064458,1735488654127,-528.87,0.00011814,2]
[347064459,1735488654137,-500.0,0.00011814,2]
[347064460,1735488654147,-2406.87,0.00011814,2]
[347064461,1735488654156,-500.0,0.00011814,2]
[347064462,1735488654165,-500.0,0.00011814,2]
[347064463,1735488654175,-1148.49,0.00011814,2]
[347064464,1735488654184,-500.0,0.00011814,2]
[347064465,1735488654193,-4245.74,0.00011814,2]
[347064466,1735488654202,-500.0,0.00011814,2]
[347064467,1735488654211,-500.0,0.00011814,2]
[347064468,1735488654221,-2334.13,0.00011814,2]
[347064469,1735488654230,-500.0,0.00011814,2]
[347064470,1735488654240,-1274.72,0.00011814,2]
[347064471,1735488654249,-500.0,0.00011814,2]
[347064472,1735488654258,-500.0,0.00011814,2]
[347064473,1735488654267,-500.0,0.00011814,2]
[347064474,1735488654277,-500.0,0.00011814,2]
[347064475,1735488654287,-1034.1,0.00011814,2]
[347064476,1735488654297,-500.0,0.00011814,2]
[347064477,1735488654306,-2292.21,0.00011814,2]
[347064478,1735488654315,-500.0,0.00011814,2]
[347064479,1735488654325,-198.90463833,0.00011814,2]
[347064480,1735488654334,-500.0,0.00011814,2]
[347064481,1735488654343,-1392.86,0.00011814,2]
[347064482,1735488654353,-500.0,0.00011814,2]
[347064483,1735488654362,-500.0,0.00011814,2]
[347064484,1735488654371,-710.02,0.00011814,2]
[347064485,1735488654381,-1928.1,0.00011814,2]
[347064486,1735488654390,-500.0,0.00011814,2]
[347064487,1735488654400,-841.82,0.00011814,2]
[347064488,1735488654409,-500.0,0.00011814,2]
[347064489,1735488654419,-2218.33,0.00011814,2]
[347064490,1735488654428,-642.09,0.00011814,2]
[347064491,1735488654437,-500.0,0.00011814,2]
[347064492,1735488654447,-500.0,0.00011814,2]
[347064493,1735488654458,-500.0,0.00011814,2]
[347064494,1735488654467,-1534.75,0.00011814,2]
[347064495,1735488654477,-1158.55,0.00011814,2]
[347064496,1735488654486,-570.63,0.00011814,2]
[347064497,1735488654495,-500.0,0.00011814,2]
[347064498,1735488654506,-929.29,0.00011814,2]
[347064499,1735488654515,-500.0,0.00011814,2]
[347064500,1735488654525,-500.0,0.00011814,2]
[347064501,1735488654534,-500.0,0.00011814,2]
[347064502,1735488654544,-2726.97,0.00011814,2]
[347064503,1735488654553,-500.0,0.00011814,2]
[347064504,1735488654563,-500.0,0.00011814,2]
[347064505,1735488654572,-500.0,0.00011814,2]
[347064506,1735488654582,-500.0,0.00011814,2]
[347064507,1735488654591,-500.0,0.00011814,2]
[347064508,1735488654600,-949.81,0.00011814,2]
[347064509,1735488654609,-500.0,0.00011814,2]
[347064510,1735488654620,-491.92275768,0.00011814,2]
[347064511,1735488654629,-500.0,0.00011814,2]
[347064512,1735488654639,-500.0,0.00011814,2]
[347064513,1735488654648,-1011.72,0.00011814,2]
[347064514,1735488654657,-4370.35,0.00011814,2]
[347064515,1735488654667,-500.0,0.00011814,2]
[347064516,1735488654676,-500.0,0.00011814,2]
[347064517,1735488654686,-736.12,0.00011814,2]
[347064518,1735488654695,-500.0,0.00011814,2]
[347064519,1735488654705,-1065.4,0.00011814,2]
[347064520,1735488654715,-500.0,0.00011814,2]
[347064521,1735488654724,-500.0,0.00011814,2]
[347064522,1735488654734,-1365.28,0.00011814,2]
[347064523,1735488654743,-1375.08,0.00011814,2]
[347064524,1735488654754,-500.0,0.00011814,2]
[347064525,1735488654763,-500.0,0.00011814,2]
[347064526,1735488654773,-4162.07,0.00011814,2]
[347064527,1735488654782,-500.0,0.00011814,2]
[347064528,1735488654791,-1380.91,0.00011814,2]
[347064529,1735488654801,-940.76,0.00011814,2]
[347064530,1735488654810,-500.0,0.00011814,2]
[347064531,1735488654820,-500.0,0.00011814,2]
[347064532,1735488654829,-500.0,0.00011814,2]
[347064533,1735488654839,-977.28,0.00011814,2]
[347064534,1735488654848,-500.0,0.00011814,7]
[347064535,1735488654858,-904.8,0.00011814,2]
[347064536,1735488654867,-500.0,0.00011814,2]
[347064537,1735488654876,-990.61,0.00011814,2]
[347064538,1735488654886,-500.0,0.00011814,2]
[347064539,1735488654895,-1419.58,0.00011814,2]
[347064540,1735488654905,-1938.49,0.00011814,2]
[347064541,1735488654914,-500.0,0.00011814,2]
[347064542,1735488654923,-2962.12,0.00011814,2]
[347064543,1735488654934,-868.85,0.00011814,2]
[347064544,1735488654943,-1801.73,0.00011814,2]
[347064545,1735488654954,-500.0,0.00011814,2]
[347064546,1735488654963,-1026.56,0.00011814,2]
[347064547,1735488654973,-1296.51,0.00011814,2]
[347064548,1735488654982,-1138.52,0.00011814,2]
[347064549,1735488654992,-500.0,0.00011814,2]
[347064550,1735488655002,-7123.99,0.00011814,2]
[347064551,1735488655011,-1330.77,0.00011814,2]
[347064552,1735488655021,-1125.38,0.00011814,2]
[347064553,1735488655031,-500.0,0.00011814,2]
[347064554,1735488655040,-956.19,0.00011814,2]
[347064555,1735488655050,-760.51,0.00011814,2]
[347064556,1735488655060,-2537.98,0.00011814,2]
[347064557,1735488655071,-4194.43,0.00011814,2]
[347064558,1735488655080,-506.89152802,0.00011814,2]
[347064559,1735488655090,-500.0,0.00011814,2]
[347064560,1735488655099,-1192.89,0.00011814,2]
[347064561,1735488655109,-500.0,0.00011814,2]
[347064562,1735488655118,-1296.82,0.00011814,2]
[347064563,1735488655128,-16453.72,0.00011814,2]
[347064564,1735488655138,-500.0,0.00011814,2]
[347064565,1735488655147,-500.0,0.00011814,2]
[347064566,1735488655157,-500.0,0.00011814,2]
[347064567,1735488655166,-1883.51,0.00011814,2]
[347064568,1735488655178,-500.0,0.00011814,2]
[347064569,1735488655187,-500.0,0.00011814,2]
[347064570,1735488655196,-1568.93,0.00011814,2]
[347064571,1735488655206,-500.0,0.00011814,2]
[347064572,1735488655215,-500.0,0.00011814,2]
[347064573,1735488655224,-12322.36,0.00011814,2]
[347064574,1735488655235,-631.77,0.00011814,2]
[347064575,1735488655244,-500.0,0.00011814,2]
[347064576,1735488655254,-2211.52,0.00011814,2]
[347064577,1735488655264,-500.0,0.00011814,2]
[347064578,1735488655273,-1338.22,0.00011814,2]
[347064579,1735488655283,-1245.55,0.00011814,2]
[347064580,1735488655292,-1945.96,0.00011814,2]
[347064581,1735488655302,-500.0,0.00011814,2]
[347064582,1735488655311,-500.0,0.00011814,2]
[347064583,1735488655320,-599.95,0.00011814,2]
[347064584,1735488655331,-1494.68,0.00011814,2]
[347064585,1735488655340,-500.0,0.00011814,2]
[347064586,1735488655353,-1286.36,0.00011814,2]
[347064587,1735488655362,-4720.21,0.00011814,2]
[347064588,1735488655371,-884.33,0.00011814,2]
[347064589,1735488655381,-813.82,0.00011814,2]
[347064590,1735488655391,-1514.65,0.00011814,2]
[347064591,1735488655399,-500.0,0.00011814,2]
[347064592,1735488655409,-500.0,0.00011814,2]
[347064593,1735488655418,-500.0,0.00011814,2]
[347064594,1735488655429,-500.0,0.00011814,2]
[347064595,1735488655438,-1312.16,0.00011814,2]
[347064596,1735488655447,-500.0,0.00011814,2]
[347064597,1735488655456,-500.0,0.00011814,2]
[347064598,1735488655466,-500.0,0.00011814,2]
[347064599,1735488655475,-856.59,0.00011814,2]
[347064600,1735488655484,-755.56,0.00011814,2]
[347064601,1735488655493,-500.0,0.00011814,2]
[347064602,1735488655503,-500.0,0.00011814,2]
[347064603,1735488655512,-500.0,0.00011814,2]
[347064604,1735488655521,-3179.41,0.00011814,2]
[347064605,1735488655531,-1031.25,0.00011814,2]
[347064606,1735488655540,-500.0,0.00011814,2]
[347064607,1735488655549,-500.0,0.00011814,2]
[347064608,1735488655559,-500.0,0.00011814,2]
[347064609,1735488655568,-500.0,0.00011814,2]
[347064610,1735488655577,-1132.32,0.00011814,2]
[347064611,1735488655586,-500.0,0.00011814,2]
[347064612,1735488655596,-2892.2,0.00011814,2]
[347064613,1735488655605,-500.0,0.00011814,2]
[347064614,1735488655614,-500.0,0.00011814,2]
[347064615,1735488655623,-500.0,0.00011814,2]
[347064616,1735488655633,-1006.65,0.00011814,2]
[347064617,1735488655642,-1043.5,0.00011814,2]
[347064618,1735488655651,-846.6,0.00011814,2]
[347064619,1735488655661,-1218.9,0.00011814,2]
[347064620,1735488655670,-596.79,0.00011814,2]
[347064621,1735488655679,-4313.36,0.00011814,2]
[347064622,1735488655688,-1167.72,0.00011814,2]
[347064623,1735488655697,-523.66,0.00011814,2]
[347064624,1735488655707,-151.0,0.00011814,2]
[347064625,1735488655716,-500.0,0.00011814,2]
[347064626,1735488655726,-844.57,0.00011814,2]
[347064627,1735488655735,-1387.32,0.00011814,2]
[347064628,1735488655745,-879.92,0.00011814,2]
[347064629,1735488655755,-500.0,0.00011814,2]
[347064630,1735488655765,-3858.79,0.00011814,2]
[347064631,1735488655775,-1093.37,0.00011814,2]
[347064632,1735488655784,-500.0,0.00011814,2]
[347064633,1735488655793,-500.0,0.00011814,2]
[347064634,1735488655803,-500.0,0.00011814,2]
[347064635,1735488655812,-993.82,0.00011814,2]
[347064636,1735488655822,-3972.17,0.00011814,2]
[347064637,1735488655831,-500.0,0.00011814,2]
[347064638,1735488655840,-2566.95,0.00011814,2]
[347064639,1735488655850,-500.0,0.00011814,2]
[347064640,1735488655859,-1252.75,0.00011814,2]
[347064641,1735488655870,-791.89,0.00011814,2]
[347064642,1735488655879,-2260.4,0.00011814,2]
[347064643,1735488655888,-659.53,0.00011814,2]
[347064644,1735488655899,-500.0,0.00011814,2]
[347064645,1735488655909,-500.0,0.00011814,2]
[347064646,1735488655918,-7233.49,0.00011814,2]
[347064647,1735488655928,-500.0,0.00011814,2]
[347064648,1735488655937,-500.0,0.00011814,2]
[347064649,1735488655947,-20853.52,0.00011814,2]
[347064650,1735488655956,-680.27,0.00011814,2]
[347064651,1735488655966,-1160.57,0.00011814,2]
[347064652,1735488655976,-500.0,0.00011814,2]
[347064653,1735488655986,-939.31,0.00011814,2]
[347064654,1735488655995,-500.0,0.00011814,2]
[347064655,1735488656006,-667.93,0.00011814,2]
[347064656,1735488656015,-1078.56,0.00011814,2]
[347064657,1735488656025,-500.0,0.00011814,2]
[347064658,1735488656035,-500.0,0.00011815,2]
[347064659,1735488656044,-612.73,0.00011815,2]
[347064660,1735488656054,-500.0,0.00011815,2]
[347064661,1735488656063,-500.0,0.00011815,2]
[347064662,1735488656073,-806.46,0.00011815,2]
[347064663,1735488656082,-807.83,0.00011815,2]
[347064664,1735488656091,-500.0,0.00011815,2]
[347064665,1735488656100,-500.0,0.00011815,2]
[347064666,1735488656110,-500.0,0.00011815,2]
[347064667,1735488656120,-680.32,0.00011815,2]
[347064668,1735488656129,-588.57,0.00011815,2]
[347064669,1735488656139,-1041.75,0.00011815,2]
[347064670,1735488656148,-500.0,0.00011815,2]
[347064671,1735488656157,-500.0,0.00011815,2]
[347064672,1735488656167,-500.0,0.00011815,2]
[347064673,1735488656176,-570.09,0.00011815,2]
[347064674,1735488656186,-500.0,0.00011815,2]
[347064675,1735488656195,-500.0,0.00011815,2]
[347064676,1735488656205,-500.0,0.00011815,2]
[347064677,1735488656215,-500.0,0.00011815,2]
[347064678,1735488656225,-500.0,0.00011815,2]
[347064679,1735488656235,-538.95229656,0.00011815,2]
[347064680,1735488656244,-500.0,0.00011815,2]
[347064681,1735488656254,-500.0,0.00011815,2]
[347064682,1735488656264,-1189.93,0.00011815,2]
[347064683,1735488656274,-500.0,0.00011815,2]
[347064684,1735488656283,-500.0,0.00011815,2]
[347064685,1735488656292,-1373.45,0.00011815,2]
[347064686,1735488656301,-500.0,0.00011815,2]
[347064687,1735488656311,-2685.25,0.00011815,2]
[347064688,1735488656320,-2041.89,0.00011815,2]
[347064689,1735488656329,-2859.65,0.00011815,2]
[347064690,1735488656338,-2601.0,0.00011815,2]
[347064691,1735488656348,-609.27,0.00011815,2]
[347064692,1735488656357,-778.28,0.00011815,2]
[347064693,1735488656366,-760.94,0.00011815,2]
[347064694,1735488656376,-500.0,0.00011815,2]
[347064695,1735488656386,-500.0,0.00011815,2]
[347064696,1735488656395,-554.09630562,0.00011815,2]
[347064697,1735488656405,-1602.17,0.00011815,2]
[347064698,1735488656414,-500.0,0.00011815,2]
[347064699,1735488656423,-151.0,0.00011815,2]
[347064700,1735488656433,-500.0,0.00011815,2]
[347064701,1735488656442,-1375.01,0.00011815,2]
[347064702,1735488656451,-500.0,0.00011815,2]
[347064703,1735488656460,-1563.81,0.00011815,2]
[347064704,1735488656470,-1229.03,0.00011815,2]
[347064705,1735488656480,-1220.45,0.00011815,2]
[347064706,1735488656489,-503.38,0.00011815,2]
[347064707,1735488656498,-1959.42,0.00011815,2]
[347064708,1735488656508,-1265.12,0.00011815,2]
[347064709,1735488656518,-1619.77,0.00011815,2]
[347064710,1735488656527,-1534.41,0.00011815,2]
[347064711,1735488656538,-500.0,0.00011815,2]
[347064712,1735488656547,-2257.38,0.00011815,2]
[347064713,1735488656557,-863.34,0.00011815,2]
[347064714,1735488656566,-500.0,0.00011815,2]
[347064715,1735488656575,-939.4,0.00011815,2]
[347064716,1735488656584,-516.73193575,0.00011815,2]
[347064717,1735488656594,-1641.25,0.00011815,2]
[347064718,1735488656605,-2546.45,0.00011815,2]
[347064719,1735488656614,-1493.68,0.00011815,2]
[347064720,1735488656624,-1070.6,0.00011815,2]
[347064721,1735488656633,-1502.96,0.00011815,2]
[347064722,1735488656643,-3179.41,0.00011815,2]
[347064723,1735488656652,-1094.31,0.00011815,2]
[347064724,1735488656661,-3023.89,0.00011815,2]
[347064725,1735488656671,-1386.63,0.00011815,2]
[347064726,1735488656680,-2781.53,0.00011815,2]
[347064727,1735488656689,-6179.01,0.00011815,2]
[347064728,1735488656698,-14980.95,0.00011815,2]
[347064729,1735488656707,-847.97,0.00011815,2]
[347064730,1735488656717,-500.0,0.00011815,2]
[347064731,1735488656726,-1024.09,0.00011815,2]
[347064732,1735488656735,-2232.62,0.00011815,2]
[347064733,1735488656744,-1358.98,0.00011815,2]
[347064734,1735488656754,-592.62,0.00011815,2]
[347064735,1735488656764,-3777.24,0.00011815,2]
[347064736,1735488656773,-1681.75,0.00011815,2]
[347064737,1735488656783,-500.0,0.00011815,2]
[347064738,1735488656792,-4981.6,0.00011815,2]
[347064739,1735488656802,-807.67,0.00011815,2]
[347064740,1735488656812,-1046.52,0.00011815,2]
[347064741,1735488656821,-4514.93,0.00011815,2]
[347064742,1735488656831,-500.0,0.00011815,2]
[347064743,1735488656840,-933.75,0.00011815,2]
[347064744,1735488656849,-3139.45,0.00011816,2]